[Event "Titled Tuesday Blitz May 23 Early 2023"]
[White "Bryakin, Mikhail"]
[Black "Svane, Frederik"]
[WhiteFideId "4165314"]
[BlackFideId "12923044"]
[WhiteElo "2467"]
[BlackElo "2502"]
[Result "0-1"]
[Round "04"]
[TimeControl "180+2"]
[Date "2023.05.23"]
[WhiteClock "0:00:37"]
[BlackClock "0:00:50"]

1. Nf3 {[%clk 0:03:00]}  d5 {[%clk 0:02:58]} 2. g3 {[%clk 0:02:59]}  Nc6 {[%clk 0:02:58]} 3. d4 {[%clk 0:02:57]}  Bf5 {[%clk 0:02:59]} 4. Bg2 {[%clk 0:02:55]}  Nb4 {[%clk 0:02:59]} 5. Na3 {[%clk 0:02:55]}  e6 {[%clk 0:02:59]} 6. O-O {[%clk 0:02:51]}  Nc6 {[%clk 0:02:59]} 7. Nb1 {[%clk 0:02:47]}  Nb4 {[%clk 0:02:59]} 8. Na3 {[%clk 0:02:48]}  Nc6 {[%clk 0:02:59]} 9. Nb1 {[%clk 0:02:47]}  Be7 {[%clk 0:03:00]} 10. b3 {[%clk 0:02:41]}  Nf6 {[%clk 0:02:59]} 11. Bb2 {[%clk 0:02:42]}  Ne4 {[%clk 0:02:57]} 12. Nbd2 {[%clk 0:02:40]}  h5 {[%clk 0:02:56]} 13. Nxe4 {[%clk 0:02:37]}  dxe4 {[%clk 0:02:54]} 14. Ne5 {[%clk 0:02:38]}  Nxe5 {[%clk 0:02:47]} 15. dxe5 {[%clk 0:02:39]}  h4 {[%clk 0:02:46]} 16. Qxd8+ {[%clk 0:02:37]}  Rxd8 {[%clk 0:02:47]} 17. Rfd1 {[%clk 0:02:37]}  O-O {[%clk 0:02:41]} 18. e3 {[%clk 0:02:32]}  h3 {[%clk 0:02:39]} 19. Bh1 {[%clk 0:02:31]}  c6 {[%clk 0:02:34]} 20. a4 {[%clk 0:02:20]}  g5 {[%clk 0:02:19]} 21. Bc3 {[%clk 0:02:03]}  g4 {[%clk 0:02:17]} 22. Kf1 {[%clk 0:02:02]}  Kg7 {[%clk 0:02:12]} 23. Ke1 {[%clk 0:01:58]}  Kg6 {[%clk 0:02:12]} 24. Rxd8 {[%clk 0:01:53]}  Rxd8 {[%clk 0:02:12]} 25. Rd1 {[%clk 0:01:54]}  Rxd1+ {[%clk 0:02:10]} 26. Kxd1 {[%clk 0:01:55]}  Kg5 {[%clk 0:02:11]} 27. Bd4 {[%clk 0:01:51]}  c5 {[%clk 0:02:06]} 28. Bc3 {[%clk 0:01:51]}  Bg6 {[%clk 0:02:06]} 29. Kd2 {[%clk 0:01:48]}  Kf5 {[%clk 0:02:06]} 30. Bb2 {[%clk 0:01:48]}  Bd8 {[%clk 0:01:44]} 31. Ba3 {[%clk 0:01:46]}  Ba5+ {[%clk 0:01:41]} 32. Kd1 {[%clk 0:01:46]}  Bb6 {[%clk 0:01:30]} 33. Bb2 {[%clk 0:01:43]}  Bc7 {[%clk 0:01:30]} 34. Ba3 {[%clk 0:01:44]}  b6 {[%clk 0:01:30]} 35. Bb2 {[%clk 0:01:42]}  Bxe5 {[%clk 0:01:30]} 36. Bxe5 {[%clk 0:01:42]}  Kxe5 {[%clk 0:01:31]} 37. c4 {[%clk 0:01:42]}  f5 {[%clk 0:01:26]} 38. Kc2 {[%clk 0:01:42]}  Kd6 {[%clk 0:01:26]} 39. Kb2 {[%clk 0:01:41]}  Be8 {[%clk 0:01:26]} 40. Ka3 {[%clk 0:01:41]}  Bc6 {[%clk 0:01:21]} 41. Kb2 {[%clk 0:01:40]}  a6 {[%clk 0:01:16]} 42. Kc3 {[%clk 0:01:35]}  b5 {[%clk 0:01:01]} 43. a5 {[%clk 0:01:34]}  bxc4 {[%clk 0:01:01]} 44. bxc4 {[%clk 0:01:31]}  Ba4 {[%clk 0:01:01]} 45. Kb2 {[%clk 0:01:25]}  Bd1 {[%clk 0:01:01]} 46. Kc3 {[%clk 0:01:24]}  Be2 {[%clk 0:01:01]} 47. Kb3 {[%clk 0:01:16]}  Bf1 {[%clk 0:01:00]} 48. Kc3 {[%clk 0:00:59]}  Bg2 {[%clk 0:01:00]} 49. Kd2 {[%clk 0:00:59]}  Bxh1 {[%clk 0:01:01]} 50. Ke2 {[%clk 0:00:56]}  Bf3+ {[%clk 0:01:01]} 51. Ke1 {[%clk 0:00:56]}  Ke7 {[%clk 0:00:47]} 52. Kd2 {[%clk 0:00:55]}  Bg2 {[%clk 0:00:47]} 53. Ke1 {[%clk 0:00:46]}  Kf6 {[%clk 0:00:46]} 54. Ke2 {[%clk 0:00:45]}  Ke5 {[%clk 0:00:46]} 55. Ke1 {[%clk 0:00:43]}  Bf3 {[%clk 0:00:44]} 56. Kd2 {[%clk 0:00:43]}  Kf6 {[%clk 0:00:45]} 57. Ke1 {[%clk 0:00:43]}  Kg5 {[%clk 0:00:45]} 58. Kd2 {[%clk 0:00:44]}  Kg6 {[%clk 0:00:46]} 59. Ke1 {[%clk 0:00:44]}  Kf7 {[%clk 0:00:47]} 60. Kd2 {[%clk 0:00:44]}  Ke8 {[%clk 0:00:48]} 61. Ke1 {[%clk 0:00:45]}  Kd7 {[%clk 0:00:49]} 62. Kd2 {[%clk 0:00:46]}  Kc6 {[%clk 0:00:49]} 63. Ke1 {[%clk 0:00:47]}  Kd6 {[%clk 0:00:50]} 64. Kd2 {[%clk 0:00:47]}  Bg2 {[%clk 0:00:51]} 65. Ke2 {[%clk 0:00:46]}  Ke5 {[%clk 0:00:52]} 66. Ke1 {[%clk 0:00:45]}  f4 {[%clk 0:00:53]} 67. Ke2 {[%clk 0:00:39]}  f3+ {[%clk 0:00:50]} 68. Ke1 {[%clk 0:00:39]}  Kd6 {[%clk 0:00:50]} 69. Kd2 {[%clk 0:00:37]}  Bf1 {[%clk 0:00:50]} 70. Kc3 {[%clk 0:00:38]}  Bxc4 {[%clk 0:00:48]} 71. Kxc4 {[%clk 0:00:37]}  Kc6 {[%clk 0:00:48]} 72. Kc3 {[%clk 0:00:36]}  Kb5 {[%clk 0:00:48]} 73. Kb3 {[%clk 0:00:37]}  Kxa5 {[%clk 0:00:48]} 74. Kc4 {[%clk 0:00:37]}  Kb6 {[%clk 0:00:49]} 75. Kb3 {[%clk 0:00:38]}  Kb5 {[%clk 0:00:49]} 76. Kc3 {[%clk 0:00:37]}  a5 {[%clk 0:00:50]} 0-1


[Site "https://www.chess.com"]

[Event "Titled Tuesday Blitz May 23 Early 2023"]
[White "Kilic, Eray"]
[Black "Sjugirov, Sanan"]
[WhiteFideId "44517173"]
[BlackFideId "4189302"]
[WhiteElo "2328"]
[BlackElo "2569"]
[Result "0-1"]
[Round "04"]
[TimeControl "180+2"]
[Date "2023.05.23"]
[WhiteClock "0:00:00"]
[BlackClock "0:00:25"]

1. e4 {[%clk 0:03:00]}  c5 {[%clk 0:02:59]} 2. Nf3 {[%clk 0:03:00]}  d6 {[%clk 0:03:00]} 3. Bb5+ {[%clk 0:03:00]}  Bd7 {[%clk 0:03:00]} 4. c4 {[%clk 0:02:59]}  Nf6 {[%clk 0:02:57]} 5. Nc3 {[%clk 0:02:58]}  e6 {[%clk 0:02:55]} 6. O-O {[%clk 0:02:58]}  Be7 {[%clk 0:02:55]} 7. d4 {[%clk 0:02:58]}  cxd4 {[%clk 0:02:55]} 8. Bxd7+ {[%clk 0:02:57]}  Qxd7 {[%clk 0:02:55]} 9. Nxd4 {[%clk 0:02:57]}  O-O {[%clk 0:02:56]} 10. Be3 {[%clk 0:02:56]}  Nc6 {[%clk 0:02:55]} 11. h3 {[%clk 0:02:51]}  Rac8 {[%clk 0:02:54]} 12. Rc1 {[%clk 0:02:51]}  a6 {[%clk 0:02:51]} 13. b3 {[%clk 0:02:50]}  Qc7 {[%clk 0:02:50]} 14. Nd5 {[%clk 0:02:42]}  Qd8 {[%clk 0:02:44]} 15. Nxc6 {[%clk 0:02:34]}  Rxc6 {[%clk 0:02:43]} 16. Nxf6+ {[%clk 0:02:17]}  Bxf6 {[%clk 0:02:43]} 17. Qd3 {[%clk 0:02:17]}  Qa5 {[%clk 0:02:41]} 18. Rc2 {[%clk 0:02:18]}  Rfc8 {[%clk 0:02:40]} 19. Rd1 {[%clk 0:02:17]}  b5 {[%clk 0:02:37]} 20. Rdc1 {[%clk 0:02:06]}  Qc7 {[%clk 0:02:28]} 21. f4 {[%clk 0:01:47]}  h6 {[%clk 0:02:22]} 22. Bd4 {[%clk 0:01:43]}  Bxd4+ {[%clk 0:02:18]} 23. Qxd4 {[%clk 0:01:44]}  Qa5 {[%clk 0:01:43]} 24. Kh2 {[%clk 0:01:29]}  bxc4 {[%clk 0:01:33]} 25. Rxc4 {[%clk 0:00:56]}  Rxc4 {[%clk 0:01:33]} 26. Rxc4 {[%clk 0:00:32]}  Rxc4 {[%clk 0:01:32]} 27. bxc4 {[%clk 0:00:32]}  Qxa2 {[%clk 0:01:31]} 28. e5 {[%clk 0:00:30]}  d5 {[%clk 0:01:17]} 29. cxd5 {[%clk 0:00:23]}  Qxd5 {[%clk 0:01:16]} 30. Qa4 {[%clk 0:00:23]}  Qb5 {[%clk 0:01:07]} 31. Qe4 {[%clk 0:00:21]}  Qb8 {[%clk 0:00:53]} 32. Qa4 {[%clk 0:00:16]}  Qa8 {[%clk 0:00:43]} 33. Kg3 {[%clk 0:00:12]}  a5 {[%clk 0:00:42]} 34. Kh2 {[%clk 0:00:12]}  g6 {[%clk 0:00:41]} 35. Kg3 {[%clk 0:00:09]}  Kg7 {[%clk 0:00:41]} 36. Kh2 {[%clk 0:00:08]}  Qd5 {[%clk 0:00:35]} 37. Kg3 {[%clk 0:00:08]}  Qd3+ {[%clk 0:00:30]} 38. Kh2 {[%clk 0:00:07]}  Qd2 {[%clk 0:00:31]} 39. Qe4 {[%clk 0:00:05]}  Qb4 {[%clk 0:00:29]} 40. Qe3 {[%clk 0:00:04]}  a4 {[%clk 0:00:27]} 41. Qg3 {[%clk 0:00:00]}  Qe4 {[%clk 0:00:25]} 0-1


[Site "https://www.chess.com"]

[Event "Titled Tuesday Blitz May 23 Early 2023"]
[White "Matlakov, Maxim"]
[Black "Fernandez Guillen, Ernesto J."]
[WhiteFideId "4168003"]
[BlackFideId "3512428"]
[WhiteElo "2666"]
[BlackElo "2429"]
[Result "1-0"]
[Round "04"]
[TimeControl "180+2"]
[Date "2023.05.23"]
[WhiteClock "0:00:21"]
[BlackClock "0:00:03"]

1. d4 {[%clk 0:03:00]}  Nf6 {[%clk 0:02:59]} 2. Nf3 {[%clk 0:03:00]}  e6 {[%clk 0:02:58]} 3. e3 {[%clk 0:03:00]}  b6 {[%clk 0:02:59]} 4. Bd3 {[%clk 0:02:57]}  Bb7 {[%clk 0:02:59]} 5. Nbd2 {[%clk 0:02:54]}  d5 {[%clk 0:02:59]} 6. b3 {[%clk 0:02:54]}  Nbd7 {[%clk 0:03:00]} 7. Bb2 {[%clk 0:02:54]}  Bd6 {[%clk 0:03:00]} 8. Qe2 {[%clk 0:02:54]}  Ne4 {[%clk 0:02:55]} 9. O-O {[%clk 0:02:45]}  O-O {[%clk 0:02:54]} 10. c4 {[%clk 0:02:45]}  Re8 {[%clk 0:02:40]} 11. Rac1 {[%clk 0:02:44]}  c5 {[%clk 0:02:30]} 12. Rfd1 {[%clk 0:02:40]}  Qe7 {[%clk 0:02:13]} 13. Nf1 {[%clk 0:02:30]}  Red8 {[%clk 0:02:09]} 14. Ng3 {[%clk 0:02:29]}  Nxg3 {[%clk 0:01:47]} 15. hxg3 {[%clk 0:02:29]}  h6 {[%clk 0:01:46]} 16. cxd5 {[%clk 0:02:26]}  exd5 {[%clk 0:01:46]} 17. Nh4 {[%clk 0:02:19]}  Qe6 {[%clk 0:01:28]} 18. Bf5 {[%clk 0:02:13]}  Qe7 {[%clk 0:01:25]} 19. Bb1 {[%clk 0:02:07]}  Qe6 {[%clk 0:01:24]} 20. Nf5 {[%clk 0:01:55]}  Bf8 {[%clk 0:01:22]} 21. dxc5 {[%clk 0:01:55]}  bxc5 {[%clk 0:01:19]} 22. Qh5 {[%clk 0:01:47]}  Nf6 {[%clk 0:01:04]} 23. Qh4 {[%clk 0:01:44]}  Ne4 {[%clk 0:01:03]} 24. Qf4 {[%clk 0:01:18]}  Re8 {[%clk 0:00:46]} 25. g4 {[%clk 0:01:17]}  Rad8 {[%clk 0:00:39]} 26. Bd3 {[%clk 0:01:12]}  c4 {[%clk 0:00:27]} 27. Bb1 {[%clk 0:01:05]}  Qg6 {[%clk 0:00:11]} 28. bxc4 {[%clk 0:01:01]}  Nf6 {[%clk 0:00:10]} 29. Ne7+ {[%clk 0:00:58]}  Bxe7 {[%clk 0:00:09]} 30. Bxg6 {[%clk 0:00:59]}  fxg6 {[%clk 0:00:10]} 31. c5 {[%clk 0:00:54]}  Bc6 {[%clk 0:00:09]} 32. Be5 {[%clk 0:00:50]}  Ne4 {[%clk 0:00:09]} 33. Qh2 {[%clk 0:00:43]}  Rf8 {[%clk 0:00:08]} 34. f3 {[%clk 0:00:42]}  Nxc5 {[%clk 0:00:08]} 35. Bd4 {[%clk 0:00:41]}  Ba4 {[%clk 0:00:06]} 36. Rd2 {[%clk 0:00:27]}  Ne6 {[%clk 0:00:05]} 37. Qe5 {[%clk 0:00:25]}  Rd6 {[%clk 0:00:05]} 38. Rc7 {[%clk 0:00:22]}  Nxd4 {[%clk 0:00:02]} 39. Qxe7 {[%clk 0:00:21]}  Ne6 {[%clk 0:00:03]} 40. Qxd6 {[%clk 0:00:20]}  Nxc7 {[%clk 0:00:03]} 41. Qxc7 {[%clk 0:00:21]} 1-0


[Site "https://www.chess.com"]

[Event "Titled Tuesday Blitz May 23 Early 2023"]
[White "Babazada, Khazar"]
[Black "Ashraf, Artin"]
[WhiteFideId "13413554"]
[BlackFideId "22514805"]
[WhiteElo "2351"]
[BlackElo "2188"]
[Result "1-0"]
[Round "04"]
[TimeControl "180+2"]
[Date "2023.05.23"]
[WhiteClock "0:02:01"]
[BlackClock "0:01:15"]

1. e4 {[%clk 0:03:00]}  e6 {[%clk 0:03:00]} 2. d4 {[%clk 0:03:00]}  d5 {[%clk 0:03:00]} 3. Nc3 {[%clk 0:03:01]}  dxe4 {[%clk 0:02:51]} 4. Nxe4 {[%clk 0:03:01]}  Bd7 {[%clk 0:02:52]} 5. Nf3 {[%clk 0:03:00]}  Bc6 {[%clk 0:02:52]} 6. Bd3 {[%clk 0:03:01]}  Nd7 {[%clk 0:02:51]} 7. Qe2 {[%clk 0:03:01]}  Ngf6 {[%clk 0:02:51]} 8. Neg5 {[%clk 0:03:01]}  Bd6 {[%clk 0:02:39]} 9. Ne5 {[%clk 0:02:50]}  O-O {[%clk 0:02:33]} 10. Bd2 {[%clk 0:02:39]}  h6 {[%clk 0:02:27]} 11. h4 {[%clk 0:02:39]}  Re8 {[%clk 0:01:44]} 12. Ngxf7 {[%clk 0:02:37]}  Qe7 {[%clk 0:01:44]} 13. O-O-O {[%clk 0:02:22]}  Bxe5 {[%clk 0:01:32]} 14. Nxe5 {[%clk 0:02:22]}  Nxe5 {[%clk 0:01:33]} 15. dxe5 {[%clk 0:02:20]}  Nd7 {[%clk 0:01:31]} 16. Rh3 {[%clk 0:02:16]}  a5 {[%clk 0:01:31]} 17. Rg3 {[%clk 0:02:16]}  Kh8 {[%clk 0:01:31]} 18. Qh5 {[%clk 0:02:15]}  Qf8 {[%clk 0:01:24]} 19. Rg6 {[%clk 0:02:04]}  Re7 {[%clk 0:01:17]} 20. Bxh6 {[%clk 0:02:02]}  gxh6 {[%clk 0:01:18]} 21. Rxh6+ {[%clk 0:02:03]}  Kg8 {[%clk 0:01:15]} 22. Rh8+ {[%clk 0:02:01]} 1-0


[Site "https://www.chess.com"]

[Event "Titled Tuesday Blitz May 23 Early 2023"]
[White "Gorovets, Andrey"]
[Black "Stribuk, Artiom"]
[WhiteFideId "13504037"]
[BlackFideId "13515659"]
[WhiteElo "2459"]
[BlackElo "2303"]
[Result "1/2-1/2"]
[Round "04"]
[TimeControl "180+2"]
[Date "2023.05.23"]
[WhiteClock "0:00:07"]
[BlackClock "0:00:05"]

1. Nf3 {[%clk 0:03:00]}  Nf6 {[%clk 0:02:57]} 2. g3 {[%clk 0:03:01]}  b6 {[%clk 0:02:47]} 3. Bg2 {[%clk 0:03:00]}  Bb7 {[%clk 0:02:48]} 4. d4 {[%clk 0:02:58]}  c5 {[%clk 0:02:47]} 5. c4 {[%clk 0:02:58]}  cxd4 {[%clk 0:02:45]} 6. Qxd4 {[%clk 0:02:58]}  Nc6 {[%clk 0:02:43]} 7. Qd2 {[%clk 0:02:45]}  g6 {[%clk 0:02:19]} 8. Nc3 {[%clk 0:02:44]}  Bg7 {[%clk 0:02:20]} 9. Rb1 {[%clk 0:02:33]}  O-O {[%clk 0:02:09]} 10. O-O {[%clk 0:02:32]}  e6 {[%clk 0:01:34]} 11. Rd1 {[%clk 0:02:30]}  d5 {[%clk 0:01:34]} 12. cxd5 {[%clk 0:02:30]}  exd5 {[%clk 0:01:34]} 13. Qf4 {[%clk 0:02:10]}  Re8 {[%clk 0:01:32]} 14. Be3 {[%clk 0:02:07]}  h6 {[%clk 0:00:54]} 15. Nd4 {[%clk 0:01:40]}  Ne5 {[%clk 0:00:45]} 16. Nf3 {[%clk 0:01:24]}  g5 {[%clk 0:00:30]} 17. Qa4 {[%clk 0:01:20]}  Nc4 {[%clk 0:00:26]} 18. Bd4 {[%clk 0:01:19]}  a6 {[%clk 0:00:26]} 19. e3 {[%clk 0:01:11]}  b5 {[%clk 0:00:25]} 20. Qc2 {[%clk 0:01:11]}  Rc8 {[%clk 0:00:25]} 21. Qe2 {[%clk 0:01:03]}  Qe7 {[%clk 0:00:22]} 22. Rbc1 {[%clk 0:00:56]}  Qb4 {[%clk 0:00:13]} 23. b3 {[%clk 0:00:51]}  Nd6 {[%clk 0:00:12]} 24. Qb2 {[%clk 0:00:45]}  Nf5 {[%clk 0:00:10]} 25. Nxb5 {[%clk 0:00:38]}  Nxd4 {[%clk 0:00:07]} 26. Nbxd4 {[%clk 0:00:38]}  Ne4 {[%clk 0:00:08]} 27. Rxc8 {[%clk 0:00:32]}  Rxc8 {[%clk 0:00:09]} 28. Rc1 {[%clk 0:00:32]}  Nc3 {[%clk 0:00:08]} 29. Rc2 {[%clk 0:00:25]}  a5 {[%clk 0:00:09]} 30. Bh3 {[%clk 0:00:24]}  Rc7 {[%clk 0:00:08]} 31. Kg2 {[%clk 0:00:20]}  Ba6 {[%clk 0:00:09]} 32. a3 {[%clk 0:00:19]}  Qc5 {[%clk 0:00:08]} 33. Qc1 {[%clk 0:00:17]}  Bd3 {[%clk 0:00:08]} 34. Rd2 {[%clk 0:00:16]}  Be4 {[%clk 0:00:08]} 35. Kf1 {[%clk 0:00:14]}  Qb6 {[%clk 0:00:07]} 36. Qb2 {[%clk 0:00:14]}  Qg6 {[%clk 0:00:06]} 37. Bg2 {[%clk 0:00:13]}  Bd3+ {[%clk 0:00:04]} 38. Kg1 {[%clk 0:00:13]}  Be4 {[%clk 0:00:04]} 39. h3 {[%clk 0:00:12]}  Qb6 {[%clk 0:00:04]} 40. Kh2 {[%clk 0:00:12]}  Nb5 {[%clk 0:00:04]} 41. b4 {[%clk 0:00:11]}  a4 {[%clk 0:00:04]} 42. Ng1 {[%clk 0:00:06]}  Nd6 {[%clk 0:00:04]} 43. Nge2 {[%clk 0:00:06]}  Nc4 {[%clk 0:00:05]} 44. Qa2 {[%clk 0:00:06]}  Nxd2 {[%clk 0:00:05]} 45. Qxd2 {[%clk 0:00:07]}  Rc4 {[%clk 0:00:05]} 46. f3 {[%clk 0:00:06]}  Bg6 {[%clk 0:00:04]} 47. Qd1 {[%clk 0:00:06]}  Qc7 {[%clk 0:00:05]} 48. Qxa4 {[%clk 0:00:06]}  Bd3 {[%clk 0:00:04]} 49. Qa8+ {[%clk 0:00:06]}  Qc8 {[%clk 0:00:04]} 50. Qxd5 {[%clk 0:00:06]}  Bxe2 {[%clk 0:00:05]} 51. Nxe2 {[%clk 0:00:07]}  Rc2 {[%clk 0:00:05]} 52. Qd3 {[%clk 0:00:06]}  Ra2 {[%clk 0:00:05]} 53. f4 {[%clk 0:00:07]}  Qc2 {[%clk 0:00:05]} 54. Qxc2 {[%clk 0:00:04]}  Rxc2 {[%clk 0:00:06]} 55. Bf3 {[%clk 0:00:04]}  gxf4 {[%clk 0:00:04]} 56. gxf4 {[%clk 0:00:04]}  Ra2 {[%clk 0:00:05]} 57. b5 {[%clk 0:00:05]}  Rxa3 {[%clk 0:00:05]} 58. b6 {[%clk 0:00:05]}  Rxe3 {[%clk 0:00:06]} 59. b7 {[%clk 0:00:06]}  Rb3 {[%clk 0:00:06]} 60. Ng3 {[%clk 0:00:04]}  Bf8 {[%clk 0:00:06]} 61. Nf5 {[%clk 0:00:04]}  Rb2+ {[%clk 0:00:05]} 62. Kg3 {[%clk 0:00:05]}  Rb6 {[%clk 0:00:05]} 63. Kg4 {[%clk 0:00:05]}  Kh7 {[%clk 0:00:04]} 64. Be4 {[%clk 0:00:05]}  Kg8 {[%clk 0:00:04]} 65. Kh5 {[%clk 0:00:06]}  Rb5 {[%clk 0:00:04]} 66. Kg4 {[%clk 0:00:06]}  Rb6 {[%clk 0:00:04]} 67. Kh5 {[%clk 0:00:06]}  Rb5 {[%clk 0:00:04]} 68. Kg4 {[%clk 0:00:07]}  Rb6 {[%clk 0:00:05]} 1/2-1/2


[Site "https://www.chess.com"]

[Event "Titled Tuesday Blitz May 23 Early 2023"]
[White "Simonian, Hrair"]
[Black "Bacrot, Etienne"]
[WhiteFideId "13302337"]
[BlackFideId "605506"]
[WhiteElo "2447"]
[BlackElo "2672"]
[Result "1/2-1/2"]
[Round "04"]
[TimeControl "180+2"]
[Date "2023.05.23"]
[WhiteClock "0:00:06"]
[BlackClock "0:00:05"]

1. e4 {[%clk 0:03:00]}  c5 {[%clk 0:02:59]} 2. Nc3 {[%clk 0:03:00]}  Nc6 {[%clk 0:02:59]} 3. Bb5 {[%clk 0:03:00]}  Nd4 {[%clk 0:02:59]} 4. Bc4 {[%clk 0:03:01]}  e6 {[%clk 0:02:59]} 5. Nge2 {[%clk 0:03:01]}  Nf6 {[%clk 0:02:59]} 6. O-O {[%clk 0:03:01]}  d5 {[%clk 0:02:57]} 7. exd5 {[%clk 0:03:02]}  exd5 {[%clk 0:02:58]} 8. Nxd5 {[%clk 0:03:02]}  Nxd5 {[%clk 0:02:58]} 9. Nxd4 {[%clk 0:03:02]}  cxd4 {[%clk 0:02:58]} 10. Qh5 {[%clk 0:03:02]}  Be6 {[%clk 0:02:50]} 11. Re1 {[%clk 0:03:02]}  Nf4 {[%clk 0:02:07]} 12. Bb5+ {[%clk 0:03:01]}  Ke7 {[%clk 0:02:03]} 13. Qg5+ {[%clk 0:03:02]}  Kd6 {[%clk 0:02:03]} 14. Qxf4+ {[%clk 0:03:02]}  Kc5 {[%clk 0:02:02]} 15. a4 {[%clk 0:02:56]}  Qd6 {[%clk 0:01:53]} 16. Qg5+ {[%clk 0:01:53]}  Kb6 {[%clk 0:01:52]} 17. d3 {[%clk 0:01:53]}  h6 {[%clk 0:01:41]} 18. Qh4 {[%clk 0:01:41]}  Be7 {[%clk 0:01:29]} 19. Qe4 {[%clk 0:01:38]}  g5 {[%clk 0:01:19]} 20. a5+ {[%clk 0:01:28]}  Kc7 {[%clk 0:01:15]} 21. a6 {[%clk 0:01:28]}  Qb6 {[%clk 0:00:35]} 22. Bc4 {[%clk 0:01:17]}  Rae8 {[%clk 0:00:20]} 23. Bd2 {[%clk 0:01:15]}  Bb4 {[%clk 0:00:16]} 24. Bxb4 {[%clk 0:00:55]}  Qxb4 {[%clk 0:00:16]} 25. Qe5+ {[%clk 0:00:55]}  Kb6 {[%clk 0:00:10]} 26. axb7 {[%clk 0:00:46]}  Kxb7 {[%clk 0:00:08]} 27. Qxd4 {[%clk 0:00:39]}  Bxc4 {[%clk 0:00:08]} 28. Rxe8 {[%clk 0:00:22]}  Rxe8 {[%clk 0:00:07]} 29. c3 {[%clk 0:00:16]}  Qa4 {[%clk 0:00:07]} 30. Rf1 {[%clk 0:00:11]}  Bb3 {[%clk 0:00:07]} 31. c4 {[%clk 0:00:11]}  Qc6 {[%clk 0:00:07]} 32. Qc3 {[%clk 0:00:10]}  Qb6 {[%clk 0:00:05]} 33. d4 {[%clk 0:00:06]}  a5 {[%clk 0:00:05]} 34. c5 {[%clk 0:00:06]}  Qb5 {[%clk 0:00:06]} 35. Qf3+ {[%clk 0:00:06]}  Ka7 {[%clk 0:00:05]} 36. h4 {[%clk 0:00:07]}  a4 {[%clk 0:00:05]} 37. hxg5 {[%clk 0:00:07]}  hxg5 {[%clk 0:00:06]} 38. Rc1 {[%clk 0:00:07]}  Rc8 {[%clk 0:00:05]} 39. c6 {[%clk 0:00:07]}  Kb6 {[%clk 0:00:05]} 40. Qf6 {[%clk 0:00:06]}  Rxc6 {[%clk 0:00:05]} 41. Qd8+ {[%clk 0:00:04]}  Kb7 {[%clk 0:00:05]} 42. Qd7+ {[%clk 0:00:04]}  Kb6 {[%clk 0:00:06]} 43. Qd8+ {[%clk 0:00:05]}  Kb7 {[%clk 0:00:05]} 44. Qd7+ {[%clk 0:00:05]}  Kb6 {[%clk 0:00:05]} 45. Qd8+ {[%clk 0:00:06]} 1/2-1/2


[Site "https://www.chess.com"]